bitfinex/quotes_ETHUSD_20250220
["timestamp","ask_amount","ask_price","bid_price","bid_amount"]
[1740065407813,3.65655,2734.9,2734.5,0.665709]
[1740065408016,3.65647,2734.9,2734.5,0.665709]
[1740065408418,3.65664,2734.8,2734.5,0.665709]
[1740065408572,3.65712,2734.4,2734.2,1.40895289]
[1740065408772,7.31434,2734.4,2733.9,5.24]
[1740065409014,3.65724,2734.3,2733.9,5.24]
[1740065409214,3.6575,2734.2,2733.9,5.24]
[1740065409412,3.65764,2734.0,2733.9,5.24]
[1740065410041,3.65778,2733.9,2733.5,0.7802]
[1740065410349,3.65754,2734.1,2733.6,4.626013]
[1740065410714,0.815,2734.6,2733.6,0.967863]
[1740065410944,3.65706,2734.5,2733.7,3.65804]
[1740065411150,0.815,2734.6,2733.8,0.4625903]
[1740065411313,3.65699,2734.5,2733.9,3.0]
[1740065411511,3.65706,2734.5,2733.9,3.0]
[1740065411712,3.6573,2734.3,2733.9,3.0]
[1740065412047,3.6573,2734.3,2733.8,4.1204103]
[1740065412048,0.815,2734.6,2733.8,0.4625903]
[1740065412262,3.6574,2734.2,2733.8,0.4625903]
[1740065412913,3.65765,2734.0,2733.8,0.4625903]
[1740065413117,3.6576,2734.1,2733.9,0.70945964]
[1740065413321,3.65764,2734.0,2733.9,0.70945964]
[1740065413544,3.65759,2734.1,2733.9,0.70945964]
[1740065413720,7.31465,2734.3,2733.9,0.70945964]
[1740065413911,3.65759,2734.1,2733.9,0.70945964]
[1740065414135,7.31518,2734.1,2733.9,0.70945964]
[1740065414351,3.65764,2734.0,2733.9,0.70945964]
[1740065414646,3.65759,2734.1,2733.6,4.626023]
[1740065414825,3.65759,2734.1,2733.7,0.69529731]
[1740065415345,3.65774,2734.0,2733.7,0.69529731]
[1740065415860,1.787175,2734.6,2733.5,5.32695013]
[1740065415861,3.65724,2734.3,2733.5,5.32695013]
[1740065416018,3.65786,2733.9,2733.5,5.32695013]
[1740065416356,3.65786,2733.9,2733.8,0.7102594]
[1740065416528,0.7601,2734.2,2733.8,0.7102594]
[1740065416726,3.65733,2734.3,2733.8,0.7102594]
[1740065416952,3.65761,2734.1,2733.8,0.7102594]
[1740065417116,3.65737,2734.2,2733.8,1.16646266]
[1740065417331,3.6576,2734.1,2733.8,1.16646266]
[1740065417535,3.65764,2734.0,2733.9,0.7102594]
[1740065418271,3.65758,2734.1,2733.9,0.7102594]
[1740065418449,3.65764,2734.0,2733.9,0.7102594]
[1740065418647,3.65707,2734.5,2733.9,0.7102594]
[1740065418850,3.65739,2734.2,2733.9,0.7102594]
[1740065419470,3.65751,2734.1,2733.9,0.27317669]
[1740065419668,3.65734,2734.3,2733.9,0.27317669]
[1740065419879,3.65748,2734.2,2733.9,0.27317669]
[1740065420185,3.65757,2734.1,2733.9,0.27317669]
[1740065420482,7.31518,2734.1,2733.9,0.27317669]
[1740065420634,3.65764,2734.0,2733.9,0.27317669]
[1740065420959,3.65781,2733.9,2733.5,8.98522013]
[1740065421158,3.65792,2733.8,2733.6,1.49629121]
[1740065421358,3.65751,2734.1,2733.6,1.69009889]
[1740065421763,0.8212,2734.5,2733.6,1.69009889]
[1740065421959,4.46766,2735.1,2734.3,0.7675]
[1740065422179,3.65626,2735.1,2734.4,3.65701]
[1740065422340,0.8114,2735.4,2734.8,3.65649]
[1740065422537,0.8114,2735.4,2734.6,0.7675]
[1740065422738,3.6559,2735.3,2734.7,3.65663]
[1740065423037,3.6559,2735.3,2734.6,0.7675]
[1740065423038,3.6559,2735.3,2734.6,4.42422]
[1740065423238,3.6559,2735.3,2734.7,4.8089261]
[1740065423440,3.65617,2735.1,2734.7,1.1523561]
[1740065423657,3.6559,2735.3,2734.7,4.8090561]
[1740065424179,3.6559,2735.3,2734.7,9.1761292]
[1740065424383,7.31191,2735.3,2734.7,5.5194292]
[1740065424563,7.31191,2735.3,2734.8,0.62869292]
[1740065424765,3.6559,2735.3,2734.8,1.34365099]
[1740065424995,3.65513,2735.9,2735.1,3.65608]
[1740065425167,3.65559,2735.6,2734.9,4.48221]
[1740065425370,5.25,2736.2,2734.9,7.48228]
[1740065425604,3.65552,2735.6,2735.1,3.65609]
[1740065425906,3.6552,2735.9,2735.1,3.65609]
[1740065426070,3.655,2736.0,2735.2,3.65598]
[1740065426407,3.6549,2736.1,2735.5,3.65562]
[1740065426408,3.65492,2736.1,2735.5,3.65562]
[1740065426567,0.7821,2736.3,2735.3,3.65582]
[1740065426568,3.65521,2735.9,2735.3,3.65582]
[1740065426765,3.65505,2736.0,2735.4,4.021252]
[1740065426978,3.65511,2735.9,2735.4,0.365582]
[1740065427306,3.65511,2735.9,2735.5,0.8244]
[1740065427815,4.43673,2736.3,2735.5,0.8244]
[1740065428015,3.65463,2736.3,2735.7,3.65528]
[1740065428165,0.775,2736.6,2735.8,4.020698]
[1740065428508,3.6545,2736.4,2735.8,9.260668]
[1740065428728,3.65432,2736.5,2735.8,9.260668]
[1740065428936,3.65444,2736.4,2735.8,12.915788]
[1740065429102,3.65432,2736.5,2735.8,9.260648]
[1740065429309,3.65457,2736.3,2735.9,0.9260648]
[1740065429539,3.65432,2736.5,2735.9,0.9260648]
[1740065429694,3.65445,2736.4,2735.9,0.9260648]
[1740065429890,3.6549,2736.1,2735.9,0.9260648]
[1740065430533,3.65464,2736.3,2735.9,0.9260648]
[1740065430829,3.65464,2736.3,2735.7,3.0]
[1740065431032,3.65484,2736.1,2735.8,0.8076]
[1740065431534,0.775,2736.6,2735.8,0.8076]
[1740065431696,8.514,2737.1,2736.4,4.45256]
[1740065431697,0.8131,2736.9,2736.4,4.45256]
[1740065431891,5.75030274,2737.5,2736.4,4.45256]
[1740065431892,3.65417,2736.6,2736.4,1.243456]
[1740065432124,3.6543,2736.5,2736.4,0.7982]
[1740065432914,3.6543,2736.5,2736.1,0.7718]
[1740065433119,3.65459,2736.3,2736.1,0.7718]
[1740065433317,3.6535,2737.1,2736.1,0.7718]
[1740065433535,3.65452,2736.4,2736.1,1.42102249]
[1740065433715,3.65452,2736.4,2736.1,1.04384249]
[1740065433920,3.65459,2736.3,2736.1,1.04384249]
[1740065434240,7.30907,2736.4,2736.1,1.04384249]
[1740065434531,3.65463,2736.3,2736.1,1.04384249]
[1740065434731,3.6539,2736.8,2736.3,3.65454]
[1740065434920,3.6539,2736.8,2736.1,4.90498673]
[1740065435117,3.6539,2736.8,2736.2,3.0]
[1740065435440,3.65403,2736.7,2736.2,3.0]
[1740065435623,3.65417,2736.6,2736.3,0.79049867]
[1740065435820,3.6539,2736.8,2736.3,0.79049867]
[1740065436166,3.65399,2736.8,2736.3,0.79049867]
[1740065436374,4.46654,2737.2,2736.6,3.65407]
[1740065436671,3.65381,2736.9,2736.5,0.8036]
[1740065436829,3.65381,2736.9,2736.6,0.445801]
[1740065437029,3.65381,2736.9,2736.5,0.8036]
[1740065437346,3.65398,2736.8,2736.5,0.8036]
[1740065437545,0.8131,2737.2,2736.5,0.8036]
[1740065437870,3.65382,2736.9,2736.5,0.8036]
[1740065438371,3.65392,2736.8,2736.3,1.52729493]
[1740065438544,3.65365,2737.0,2736.4,4.55389949]
[1740065438729,0.8131,2737.2,2736.4,4.55389949]
[1740065438730,3.65384,2736.9,2736.4,4.55389949]
[1740065439069,3.65384,2736.9,2736.4,0.89947949]
[1740065439229,3.65364,2737.0,2736.5,3.65428]
[1740065439543,3.65385,2736.9,2736.4,7.55390949]
[1740065439727,3.65385,2736.9,2736.5,1.27357444]
[1740065439955,3.65364,2737.0,2736.5,1.27357444]
[1740065440268,3.65364,2737.0,2736.6,0.783]
[1740065440474,3.65356,2737.1,2736.6,0.783]
[1740065440678,3.65356,2737.1,2736.6,1.526728]
[1740065440983,3.65387,2736.9,2736.6,1.526728]
[1740065441129,3.65319,2737.4,2736.6,1.526728]
[1740065441130,3.6531,2737.4,2736.6,1.526728]
[1740065441329,3.65383,2736.9,2736.6,1.526728]
[1740065441729,3.6536,2737.1,2736.6,1.526728]
[1740065441969,3.65377,2736.9,2736.6,1.526728]
[1740065442766,3.6536,2737.1,2736.6,1.526728]
[1740065443070,3.65384,2736.9,2736.6,1.526728]
[1740065443276,3.65358,2737.1,2736.6,1.526728]
[1740065443449,3.65378,2736.9,2736.6,1.526728]
[1740065443771,3.65378,2736.9,2736.7,0.5180998]
[1740065443973,7.3072,2737.1,2736.6,5.180878]
[1740065444175,3.65363,2737.0,2736.6,1.526728]
[1740065444477,3.65377,2736.9,2736.6,1.526728]
[1740065444662,3.65363,2737.0,2736.6,1.526728]
[1740065444969,3.65384,2736.9,2736.7,0.5180958]
[1740065445276,3.65373,2737.0,2736.6,1.526728]
[1740065445782,3.65377,2736.9,2736.6,1.526728]
[1740065446367,3.65371,2737.0,2736.6,1.526728]
[1740065446570,0.819,2737.5,2736.7,3.65395]
[1740065446874,3.65361,2737.1,2736.6,1.526728]
[1740065447031,3.6537,2737.0,2736.6,1.526728]
[1740065447430,3.6537,2737.0,2736.7,0.5181018]
[1740065447631,3.65376,2736.9,2736.6,1.526728]
[1740065448653,3.6536,2737.1,2736.6,1.526728]
[1740065448841,3.65379,2736.9,2736.6,1.526728]
[1740065449988,3.65377,2736.9,2736.6,1.526728]
[1740065451082,0.819,2737.5,2736.7,3.6539]
[1740065451297,3.65367,2737.0,2736.6,1.526728]
[1740065452460,3.65376,2736.9,2736.6,1.526728]
[1740065452982,3.65338,2737.2,2736.6,1.526728]
[1740065453191,3.65356,2737.1,2736.6,5.180868]
[1740065453559,3.65338,2737.2,2736.7,3.65402]
[1740065453765,3.65347,2737.2,2736.7,4.1720948]
[1740065453980,7.30636,2737.4,2736.8,3.65378]
[1740065454188,4.43098,2738.1,2736.9,0.8223]
[1740065454361,3.65287,2737.6,2737.1,3.65346]
[1740065454566,3.65234,2738.0,2737.3,3.65323]
[1740065454768,3.65278,2737.7,2737.2,3.65326]
[1740065455166,0.7788,2738.1,2737.1,3.6534]
[1740065455365,0.7788,2738.1,2737.3,3.65316]
[1740065455366,3.65244,2737.9,2737.3,3.65316]
[1740065455589,3.65272,2737.7,2737.3,3.65316]
[1740065455785,3.65244,2737.9,2737.3,4.383885]
[1740065455786,3.65257,2737.8,2737.3,4.383885]
[1740065455957,3.65271,2737.7,2737.3,4.383885]
[1740065456296,3.65244,2737.9,2737.3,4.383885]
[1740065456449,3.6526,2737.8,2737.3,0.730655]
[1740065456655,3.65266,2737.8,2737.3,0.730655]
[1740065456856,3.65298,2737.5,2737.1,0.72542044]
[1740065457184,3.65298,2737.5,2736.9,7.47596]
[1740065457185,3.65324,2737.3,2736.9,0.8223]
[1740065457398,7.30655,2737.3,2736.9,0.8223]
[1740065457720,3.65348,2737.2,2736.7,4.1720648]
[1740065457851,3.65324,2737.3,2736.8,4.90161028]
[1740065458051,7.30614,2737.5,2736.9,3.65364]
[1740065458286,0.7571,2737.6,2736.9,3.65375]
[1740065458287,4.41005,2737.6,2736.9,3.65375]
[1740065458500,3.65297,2737.5,2737.0,3.65357]
[1740065458868,3.65297,2737.5,2737.0,3.92682604]
[1740065459066,3.65296,2737.5,2737.0,4.80967867]
[1740065459301,7.30603,2737.5,2737.0,4.80967867]
[1740065459592,3.65325,2737.3,2737.0,0.27325604]
[1740065460325,0.7571,2737.6,2737.0,0.27325604]
[1740065460326,3.6531,2737.4,2737.0,0.27325604]
[1740065460474,3.65345,2737.2,2737.0,0.27325604]
[1740065460656,3.65345,2737.2,2736.8,0.43720967]
[1740065460858,3.65345,2737.2,2736.8,4.09108967]
[1740065461878,3.65345,2737.2,2736.8,3.65388]
[1740065462079,3.6532,2737.4,2736.9,3.65365]
[1740065462499,3.65319,2737.4,2736.9,3.65365]
[1740065463215,3.6533,2737.3,2736.8,4.53691789]
[1740065463391,3.65337,2737.2,2737.0,0.27350243]
[1740065464016,0.7571,2737.6,2737.0,0.75454446]
[1740065464169,3.8038711,2738.2,2737.1,3.92724899]
[1740065464373,3.65218,2738.1,2737.1,7.58067899]
[1740065464743,3.65236,2738.0,2737.5,3.6529]
[1740065465137,3.65243,2737.9,2737.6,0.7781]
[1740065465437,3.65231,2738.0,2737.6,0.7781]
[1740065465592,3.65243,2737.9,2737.3,0.802]
[1740065465786,3.65282,2737.7,2737.1,2.25670036]
[1740065465988,3.65261,2737.8,2737.1,5.91011036]
[1740065466242,0.7716,2738.0,2737.1,3.1958156]
[1740065466426,3.65243,2737.9,2737.4,0.27350243]
[1740065466633,3.65291,2737.6,2737.4,0.27350243]
[1740065466833,3.65296,2737.5,2737.4,0.27350243]
[1740065467031,3.65388,2736.9,2736.5,0.8157]
[1740065467188,3.65416,2736.6,2736.5,0.8157]
[1740065467391,3.6544,2736.5,2736.1,0.8157]
[1740065467615,0.7872,2736.5,2735.8,1.4958508]
[1740065467913,0.7872,2736.5,2735.5,0.7591]
[1740065467914,3.6551,2735.9,2735.5,0.7591]
[1740065468110,3.65484,2736.1,2735.5,0.7591]
[1740065468329,3.65518,2735.9,2735.5,0.7591]
[1740065468536,3.65525,2735.8,2735.3,0.58048372]
[1740065469044,3.65539,2735.7,2735.2,1.47826971]
[1740065469238,3.65525,2735.8,2735.3,3.0]
[1740065469753,3.65525,2735.8,2735.2,5.57178177]
[1740065469932,3.65525,2735.8,2735.3,3.0]
[1740065470176,3.65537,2735.7,2735.3,3.0]
[1740065470397,0.731062,2735.7,2735.2,0.43756206]
[1740065470547,3.65538,2735.7,2735.2,0.43756206]
[1740065470748,0.8084,2736.0,2735.2,0.43756206]
[1740065471001,3.65523,2735.9,2735.3,3.65585]
[1740065471145,4.46347,2736.0,2735.3,3.65585]
[1740065471345,1.5651499,2736.4,2735.4,0.76]
[1740065471649,3.65478,2736.2,2735.6,3.6555]
[1740065471877,0.7538499,2736.4,2735.7,0.8097]
[1740065472078,0.8028,2736.7,2736.3,3.65448]
[1740065472283,0.7847,2737.1,2736.3,0.8283]
[1740065472593,3.65379,2736.9,2736.4,3.65433]
[1740065473149,0.7847,2737.1,2736.3,0.8283]
[1740065473389,3.65331,2737.3,2736.3,0.8283]
[1740065473390,3.65331,2737.3,2736.7,3.65402]
[1740065473689,3.65357,2737.1,2736.5,3.65421]
[1740065473921,0.444521,2737.2,2736.7,3.65402]
[1740065474083,3.65349,2737.2,2736.5,3.65421]
[1740065474283,3.65349,2737.2,2736.6,3.65415]
[1740065474480,0.7919,2737.4,2736.3,0.8283]
[1740065474716,0.7859,2737.9,2736.9,4.43428]
[1740065475035,3.65305,2737.5,2736.9,4.43428]
[1740065475623,3.6531,2737.4,2736.9,4.43428]
[1740065475823,3.6531,2737.4,2736.9,0.7806]
[1740065476050,0.7876,2737.6,2736.6,3.7807]
[1740065476340,3.65297,2737.5,2736.9,3.65368]
[1740065476632,4.44054,2737.6,2736.9,3.65368]
[1740065476796,0.7876,2737.6,2737.1,3.6534]
[1740065476985,0.7876,2737.6,2737.2,3.65329]
[1740065477187,0.7876,2737.6,2737.3,3.65322]
[1740065477424,0.806,2738.0,2737.5,3.65289]
[1740065477727,1.26698611,2738.0,2737.2,4.43034]
[1740065477882,0.806,2738.0,2737.2,0.777]
[1740065478087,3.65251,2737.9,2737.3,3.65323]
[1740065478286,3.65251,2737.9,2737.3,3.65315]
[1740065478825,3.65264,2737.8,2737.2,0.777]
[1740065478996,3.6527,2737.7,2737.2,3.777]
[1740065479187,3.65264,2737.8,2737.2,3.777]
[1740065479390,4.45833,2738.0,2737.3,3.65315]
[1740065479616,4.45838,2738.0,2737.3,3.65311]
[1740065479826,3.6526,2737.8,2737.3,3.65311]
[1740065479989,3.65256,2737.9,2737.2,0.777]
[1740065480191,3.6527,2737.7,2737.2,4.43034]
[1740065480730,3.65286,2737.6,2737.1,3.6534]
[1740065480913,3.65307,2737.5,2737.0,3.0]
[1740065481236,3.65307,2737.5,2736.9,0.7758]
[1740065481237,3.65323,2737.3,2736.9,0.7758]
[1740065481447,3.65341,2737.2,2736.6,0.7758]
[1740065481653,3.65367,2737.0,2736.6,0.7758]
[1740065481832,3.65367,2737.0,2736.5,0.73940466]
[1740065482004,3.65367,2737.0,2736.5,4.39369466]
[1740065482350,3.65352,2737.1,2736.6,3.65408]
[1740065482853,7.30712,2737.1,2736.6,3.65408]
[1740065483163,3.65364,2737.0,2736.5,3.73940466]
[1740065483306,7.30739,2737.0,2736.5,3.0]
[1740065483658,3.65391,2736.8,2736.3,0.7758]
[1740065483948,3.65394,2736.8,2736.3,0.7758]
[1740065484353,3.65394,2736.8,2736.3,4.43036]
[1740065484651,3.65383,2736.9,2736.4,3.65431]
[1740065484949,3.65394,2736.8,2736.3,0.7758]
[1740065485144,3.65381,2736.9,2736.4,3.65443]
[1740065485350,0.8859549,2736.9,2736.0,7.47428]
[1740065485656,3.65418,2736.6,2736.1,3.65481]
[1740065485959,3.6538,2736.9,2736.3,3.65445]
[1740065486121,3.65392,2736.8,2736.3,3.65445]
[1740065486454,3.65392,2736.8,2736.1,3.65474]
[1740065486637,3.65392,2736.8,2736.3,3.65455]
[1740065486834,4.466814,2736.8,2736.3,3.65455]
[1740065487152,8.35184834,2736.8,2736.0,0.8194]
[1740065487351,0.8026,2736.7,2735.8,3.65516]
[1740065487511,3.65439,2736.5,2735.9,3.65503]
[1740065487711,3.65444,2736.4,2735.9,3.65503]
[1740065488026,3.6546,2736.3,2735.8,3.65516]
[1740065488227,0.730883,2736.4,2735.9,3.655]
[1740065488427,3.65444,2736.4,2735.9,3.655]
[1740065488627,3.65432,2736.5,2736.0,3.6549]
[1740065488806,7.30872,2736.5,2736.0,3.6549]
[1740065489158,7.30874,2736.5,2736.0,3.6549]
[1740065489458,0.811134,2736.5,2736.0,3.6549]
[1740065489659,4.465494,2736.5,2736.0,3.6549]
[1740065490327,3.65455,2736.4,2735.8,7.31029]
[1740065490529,3.65454,2736.4,2735.8,3.65514]
[1740065490727,3.65477,2736.2,2735.7,0.8149]
[1740065490914,3.65477,2736.2,2735.7,4.47019]
[1740065491113,4.1010474,2736.4,2735.8,3.65514]
[1740065491343,0.41010474,2736.3,2735.7,0.8149]
[1740065491543,3.6547,2736.2,2735.7,4.47026]
[1740065491932,4.06474474,2736.3,2735.8,3.65517]
[1740065492436,3.65472,2736.2,2735.7,4.47026]
[1740065492639,3.65472,2736.2,2735.7,0.8149]
[1740065492927,3.65472,2736.2,2735.7,4.47027]
[1740065493147,8.08147147,2736.2,2735.7,4.47027]
[1740065493347,3.65483,2736.1,2735.7,0.8149]
[1740065493567,3.655,2736.0,2735.4,7.47595]
[1740065493719,3.655,2736.0,2735.5,3.65562]
[1740065493922,3.6551,2735.9,2735.5,3.65562]
[1740065494448,3.65498,2736.0,2735.5,3.65562]
[1740065494764,1.55733147,2736.2,2735.7,3.65533]
[1740065494920,3.65483,2736.1,2735.7,3.65533]
[1740065495128,3.65483,2736.1,2735.4,5.20084583]
[1740065495551,3.65508,2736.0,2735.5,3.65557]
[1740065495752,3.65483,2736.1,2735.5,3.65557]
[1740065495960,3.65497,2736.0,2735.5,3.65557]
[1740065496123,3.65497,2736.0,2735.6,3.65549]
[1740065497370,3.65532,2735.8,2735.4,0.8203]
[1740065497534,3.65544,2735.7,2735.2,3.65602]
[1740065497873,3.6555,2735.7,2735.2,6.65602]
[1740065498229,3.65528,2735.8,2735.2,6.65603]
[1740065498427,3.65552,2735.6,2735.1,4.43318]
[1740065498742,0.8037,2735.7,2734.9,3.65634]
[1740065498962,3.65558,2735.6,2734.9,3.65634]
[1740065499129,3.65558,2735.6,2734.9,3.6564]
[1740065499475,3.65572,2735.5,2735.0,3.65619]
[1740065500177,3.65562,2735.6,2735.0,3.65619]
[1740065500377,3.6557,2735.5,2735.0,3.65629]
[1740065500542,0.4913518,2735.6,2735.2,3.65594]
[1740065500882,3.65571,2735.5,2735.0,3.65628]
[1740065501371,4.1469218,2735.6,2735.1,3.65609]
[1740065501810,0.8037,2735.7,2735.3,3.65589]
[1740065502147,0.7519,2736.0,2735.6,3.6554]
[1740065502348,3.6551,2735.9,2735.4,3.65571]
[1740065502673,4.40691,2736.0,2735.5,3.65556]
[1740065502836,1.558076,2736.0,2735.6,3.65548]
[1740065503238,0.751,2736.2,2735.4,3.0]
[1740065503435,3.65524,2735.8,2735.3,1.4812971]
[1740065503634,3.65524,2735.8,2735.3,3.7647]
[1740065503980,3.65537,2735.7,2735.3,3.7647]
[1740065504289,3.65551,2735.6,2735.2,0.73446078]
[1740065504441,3.65551,2735.6,2735.1,3.65613]
[1740065504634,3.65551,2735.6,2735.0,0.809]
[1740065504635,4.096161,2735.6,2735.0,0.809]
[1740065504837,3.65573,2735.5,2735.0,4.46523]
[1740065505237,4.40637,2735.7,2735.2,3.65596]
[1740065505659,3.65537,2735.7,2735.2,3.65603]
[1740065505973,3.65537,2735.7,2735.1,3.65616]
[1740065506476,3.65537,2735.7,2735.0,4.52471856]
[1740065506477,0.365537,2735.7,2735.0,4.52471856]
[1740065506770,3.65557,2735.6,2735.1,3.65616]
[1740065506989,3.65576,2735.5,2735.0,4.52471856]
[1740065507276,3.65585,2735.4,2735.0,3.71571856]
[1740065507608,3.65585,2735.4,2735.0,3.0]
[1740065507786,0.7628,2735.5,2734.9,3.0]
[1740065507787,3.65598,2735.3,2734.9,3.0]
[1740065508150,4.41854,2735.5,2734.9,6.65642]
[1740065508356,3.65615,2735.2,2734.8,0.7872]
[1740065508857,3.65603,2735.2,2734.8,0.7872]
[1740065509177,3.65596,2735.3,2734.9,3.65642]
[1740065509377,3.65596,2735.3,2734.8,6.65646]
[1740065509682,3.65605,2735.2,2734.8,3.65656]
[1740065509838,3.65605,2735.2,2734.9,3.0]
[1740065510045,3.6559,2735.3,2734.9,3.0]
[1740065510384,3.6559,2735.3,2734.8,3.65646]
[1740065510385,3.65604,2735.2,2734.8,3.0]
[1740065510689,3.65601,2735.3,2734.8,6.65656]
[1740065511055,3.65611,2735.2,2734.8,3.0]
[1740065511256,3.65618,2735.1,2734.8,3.0]
[1740065511476,3.6563,2735.0,2734.5,0.8053]
[1740065511705,0.731229,2735.1,2734.2,5.16648268]
[1740065511706,3.65679,2734.7,2734.2,5.16648268]
[1740065511912,3.65707,2734.5,2734.0,0.7875]
[1740065512068,3.65684,2734.6,2734.1,3.65747]
[1740065512707,3.65684,2734.6,2734.1,3.65743]
[1740065513077,3.65667,2734.8,2734.1,3.65743]
[1740065513278,0.8193,2735.2,2734.8,3.65657]
[1740065513607,4.4754,2735.2,2734.6,3.65673]
[1740065513802,3.65622,2735.1,2734.6,3.65673]
[1740065514163,4.4754,2735.2,2734.6,3.65673]
[1740065514900,4.4754,2735.2,2734.7,3.65663]
[1740065515152,3.65627,2735.1,2734.5,4.42288]
[1740065515313,3.65638,2735.0,2734.5,0.766]
[1740065515480,1.26684,2735.2,2734.3,3.0]
[1740065515481,0.7818,2734.7,2734.3,3.0]
[1740065515995,4.43852,2734.7,2734.3,6.65723]
[1740065516369,0.7818,2734.7,2734.2,0.8321]
[1740065516561,0.7818,2734.7,2734.3,3.0]
[1740065516765,3.65692,2734.6,2734.2,1.55856301]
[1740065516965,0.7799,2735.1,2734.2,1.55856301]
[1740065517166,3.65651,2734.9,2734.4,3.65703]
[1740065517712,3.65659,2734.8,2734.2,5.21585301]
[1740065518010,3.65651,2734.9,2734.4,3.65698]
[1740065518310,3.65663,2734.8,2734.3,3.65722]
[1740065518510,3.65675,2734.7,2734.3,3.65722]
[1740065518803,4.45362,2734.6,2734.1,3.6574]
[1740065519025,0.7967,2734.6,2733.9,3.8132]
[1740065519223,0.7967,2734.6,2734.2,3.65737]
[1740065519920,0.7967,2734.6,2734.3,3.65723]
[1740065520231,4.45356,2734.6,2734.1,4.37531312]
[1740065520520,4.9720364,2734.6,2734.1,3.65742]
[1740065520724,0.7967,2734.6,2734.2,3.65731]
[1740065521494,3.10257551,2735.3,2734.4,3.65708]
[1740065521495,0.8163,2734.9,2734.4,3.65708]
[1740065521699,0.8163,2734.9,2734.5,3.65696]
[1740065521909,0.8163,2734.9,2734.4,3.65709]
[1740065522113,4.47281,2734.9,2734.4,3.65709]
[1740065522331,0.8163,2734.9,2734.2,0.74792983]
[1740065522496,3.65658,2734.8,2734.3,3.65716]
[1740065522831,3.65671,2734.7,2734.2,3.65729]
[1740065522986,3.6567,2734.7,2734.2,3.65729]
[1740065523397,0.812932,2734.8,2734.0,0.27323743]
[1740065523616,0.812932,2734.8,2734.4,3.65704]
[1740065523813,0.812932,2734.8,2734.1,0.72346518]
[1740065523814,4.469622,2734.8,2734.2,3.65737]
[1740065524335,0.8163,2734.9,2734.6,3.65681]
[1740065524487,0.8163,2734.9,2734.4,7.31402]
[1740065524685,4.47279,2734.9,2734.4,3.65701]
[1740065525137,0.8163,2734.9,2734.1,0.72346518]
[1740065525335,0.8163,2734.9,2734.3,0.7948]
[1740065525636,3.65623,2735.1,2734.6,3.65678]
[1740065525821,3.65632,2735.0,2734.6,3.65678]
[1740065526186,0.7596,2735.2,2734.4,3.6571]
[1740065526407,3.73401281,2735.9,2734.4,3.6571]
[1740065526408,4.4376,2735.6,2735.1,3.65617]
[1740065526749,3.65564,2735.5,2735.0,4.4599]
[1740065526950,3.65597,2735.3,2734.8,3.0]
[1740065527121,0.7907,2735.1,2734.5,3.65688]
[1740065527319,0.7907,2735.1,2734.7,3.65659]
[1740065527640,0.7907,2735.4,2734.9,3.65637]
[1740065528002,4.48401,2735.6,2734.9,3.65644]
[1740065528218,4.1021505,2735.5,2734.8,4.44235]
[1740065528441,3.65597,2735.3,2734.8,3.65645]
[1740065528852,3.65604,2735.2,2734.7,6.65661]
[1740065529157,0.754,2735.1,2734.5,3.65689]
[1740065529324,3.65638,2735.0,2734.5,3.65689]
[1740065529526,0.754,2735.1,2734.4,0.8071]
[1740065529839,4.41021,2735.1,2734.6,3.65677]
[1740065530013,0.754,2735.1,2734.6,3.65677]
[1740065530214,0.754,2735.1,2734.4,1.55547527]
[1740065530419,0.4465005,2735.5,2734.4,1.55547527]
[1740065530420,0.8126,2735.3,2734.9,3.65637]
[1740065530648,0.8126,2735.3,2734.8,3.65652]
[1740065530831,3.65577,2735.4,2734.9,3.65637]
[1740065531152,4.1022005,2735.5,2735.0,0.7781]
[1740065531327,0.4465005,2735.5,2735.1,3.65607]
[1740065531527,0.4465005,2735.5,2735.0,0.7781]
[1740065531739,3.65597,2735.3,2734.8,3.65656]
[1740065531942,3.65597,2735.3,2734.7,4.46914]
[1740065532151,0.7928,2735.7,2735.1,3.65609]
[1740065532325,3.65557,2735.6,2735.1,3.65609]
[1740065532657,3.65583,2735.4,2734.9,3.65635]
[1740065533844,4.386971,2735.4,2734.7,7.46911]
[1740065534055,4.40827,2735.2,2734.7,7.46911]
[1740065534237,0.7522,2735.2,2734.7,0.8125]
[1740065534438,3.6551,2735.9,2735.2,3.65595]
[1740065534660,3.65537,2735.7,2735.2,3.65595]
[1740065534967,3.65552,2735.6,2735.0,3.65621]
[1740065535177,3.65537,2735.7,2735.2,7.312]
[1740065535465,3.65519,2735.9,2735.3,3.65581]
[1740065535682,3.65543,2735.7,2735.0,3.6562]
[1740065536166,4.095979,2735.8,2735.2,3.65597]
[1740065536371,3.65537,2735.7,2735.2,3.65597]
[1740065536576,3.65553,2735.6,2735.2,3.65597]
[1740065537478,3.65553,2735.6,2735.1,3.65616]
[1740065537654,3.6555,2735.6,2735.1,3.65616]
[1740065538582,3.65565,2735.5,2735.0,3.65618]
[1740065538948,4.47335,2735.5,2734.9,6.65635]
[1740065539281,4.47335,2735.5,2735.0,3.65622]
[1740065539481,3.65579,2735.4,2735.0,3.65622]
[1740065539842,3.65579,2735.4,2734.9,6.65643]
[1740065539843,3.65585,2735.4,2734.9,6.65643]
[1740065540583,3.65592,2735.3,2734.9,6.65643]
[1740065540884,3.65592,2735.3,2734.9,3.0]
[1740065541484,3.65608,2735.2,2734.8,3.65657]
[1740065542181,4.47343,2735.5,2734.8,3.65657]
[1740065542385,3.65592,2735.3,2734.8,3.65657]
[1740065542541,3.65592,2735.3,2734.9,3.65641]
[1740065543363,3.65592,2735.3,2734.8,6.65649]